[Event "4NCL 2022-2023"]
[Site "Daventry"]
[Date "2023.01.15"]
[Round "4.30"]
[White "Ashton, Adam G"]
[Black "Lee, Richard W Y"]
[Result "1-0"]
[ECO "C10"]
[WhiteElo "2339"]
[BlackElo "2108"]
[Annotator "TA"]
[PlyCount "117"]
[EventDate "2022.10.20"]
[EventType "team-tourn"]
[EventCountry "ENG"]
[SourceTitle "playchess.com"]
[Source "ChessBase"]
[SourceQuality "1"]
[TimeControl "40/6000+30:2400+30"]

{[%evp 14,117,33,24,32,10,30,35,40,41,39,34,26,30,27,40,41,34,29,36,45,39,97,90,108,75,74,52,246,114,131,118,106,93,77,37,33,33,33,33,33,33,42,30,56,56,57,57,72,56,144,144,208,200,194,171,164,110,109,110,110,93,93,93,90,31,31,31,31,31,114,114,102,31,31,31,31,0,0,0,0,0,0,0,52,5,13,8,8,8,12,12,12,13,13,13,13,19,148,132,29957,104,29962,29957,29971,29968]} 1. e4 {[%emt 0:04:49]} e6 {[%emt 0:00:09]} 2. d4 {[%emt 0:00:05]} d5 {[%emt 0:00:05]} 3. Nc3 {[%emt 0:00:39]} dxe4 {[%emt 0:00:09]} 4. Nxe4 {[%emt 0:00:07]} Nd7 {[%emt 0:00:03]} 5. Nf3 {[%emt 0:01:56]} Ngf6 {[%emt 0:00:09]} 6. Nxf6+ {[%emt 0:04:05]} Nxf6 {[%emt 0:00:10]} 7. c3 {[%emt 0:05:53]} c5 {[%emt 0:01:00]} 8. Ne5 {[%emt 0:00:55] 8.Be3 injects fresh life into this line.} a6 {[%emt 0:01:18] C10: French with 3 Nc3: Unusual Black 3rd moves and 3...dxe4.} 9. Qa4+ {[%emt 0:01:04]} (9. Be3 $5 {[%cal Rd4c5]}) 9... Nd7 {[%emt 0:04:34]} (9... Bd7 {simplifies} 10. Nxd7 Qxd7 11. Qxd7+ Nxd7 12. Be3 cxd4 13. Bxd4 e5) 10. Be3 {[%emt 0:10:22]} Qc7 {[%emt 0:01:13] White is slightly better. has lost popularity (10...cxd4).} 11. Bb5 {[%emt 0:12:31] 11.0-0-0 is vanishing.} cxd4 {[%emt 0:00:52]} 12. Bxd7+ {[%emt 0:08:15]} (12. cxd4 Rb8 13. Bxd7+ Bxd7 14. Nxd7 Qxd7 15. Qxd7+ Kxd7 $11) 12... Bxd7 {[%emt 0:00:11]} 13. Qxd4 {[%emt 0:01:13]} Bb5 {[%emt 0:02:45]} 14. a4 $1 {[%emt 0:11:09]} Bd6 {[%emt 0:01:50]} 15. Nxf7 {[%emt 0:05:40][%mdl 64] Discovered Attack} Kxf7 {[%emt 0:00:34]} 16. axb5 {[%emt 0:00:12]} axb5 {[%emt 0:01:06]} 17. Rd1 {[%emt 0:01:39]} Be7 {[%emt 0:22:56]} (17... Rhd8 $14) 18. O-O $16 {[%emt 0:01:29] [#]} Ra4 $146 {[%emt 0:23:07]} ({Predecessor:} 18... Rhd8 19. Qe4 Rxd1 20. Rxd1 h6 21. h3 Rd8 22. Qf3+ Kg8 23. Rxd8+ Bxd8 24. Qg4 Qc4 {1-0 Asrian,K (2621)-Maslak,K (2510) Moscow op-A 04th 2008 (7)}) 19. b4 {[%emt 0:05:15]} Bf6 {[%emt 0:15:50]} 20. Qg4 {[%emt 0:01:58] Qh5+ would be deadly.} (20. Qd3 $5 {[%cal Rd3b5]} Qc6 21. Qe2 $14) 20... Qc6 $2 {[%emt 0:10:04]} (20... h5 $14 21. Qe2 Qxc3) 21. Bc5 {[%emt 0:11:11]} (21. Qh5+ $1 $18 {and the rest is easy.} g6 22. Qh6) 21... Rd8 {[%emt 0:02:29]} 22. Rxd8 {[%emt 0:00:43]} Bxd8 {[%emt 0:00:05]} 23. Qh5+ {[%emt 0:02:36]} Kg8 {[%emt 0:01:26]} 24. Rd1 {[%emt 0:01:01]} Bf6 {[%emt 0:02:06]} 25. h3 $40 {[%emt 0:00:26][%cal Bh2h3,Bh3h4,Bh4h5,Bh5h6,Bh6g7][%mdl 160] Black needs to defend precisely.} Ra8 {[%emt 0:01:53]} 26. Qe2 {[%emt 0:01:53]} Rd8 {[%emt 0:04:19] Prevents Rd6.} 27. Rxd8+ {[%emt 0:00:10]} Bxd8 $14 {[%emt 0:00:01][%mdl 4096] Endgame KQB-KQB} 28. Bd4 {[%emt 0:00:33]} Qd5 {[%emt 0:02:12]} 29. Qg4 {[%emt 0:01:07][%csl Gd4][%cal Rg4g7]} Qd7 {[%emt 0:03:19]} 30. h4 {[%emt 0:00:27]} Qf7 {[%emt 0:04:17]} 31. h5 {[%emt 0:00:49]} Bf6 {[%emt 0:01:38]} (31... h6 $14) 32. h6 $16 {[%emt 0:04:29] White is more active.} Kf8 {[%emt 0:02:39]} (32... Qe7 $16 33. hxg7 Qf7) 33. hxg7+ $1 $18 {[%emt 0:00:17]} Bxg7 {[%emt 0:00:18]} 34. Bxg7+ {[%emt 0:02:21]} Qxg7 {[%emt 0:00:04]} 35. Qxe6 {[%emt 0:01:23]} (35. Qf4+ $1 $18 Ke7 36. Qc7+ Kf6 37. Qd8+ Qe7 38. Qd4+ Kg5 39. Qe5+ Kh6 40. Qxb5) 35... Qxc3 {[%emt 0:00:28] KQ-KQ} 36. Qf5+ {[%emt 0:00:22]} Kg8 {[%emt 0:01:09]} 37. Qd5+ {[%emt 0:01:45]} (37. Qxb5 $6 Qe1+ 38. Kh2 Qxf2 $11) 37... Kf8 {[%emt 0:01:28]} 38. Qd6+ {[%emt 0:01:09]} (38. Qxb7 $6 Qxb4 39. Qf3+ Kg7 $11) (38. Qxb5 $6 Qe1+ 39. Qf1 (39. Kh2 Qxf2 40. Qc4 Qf7 $11) 39... Qxb4 $11) 38... Kf7 {[%emt 0:00:46]} 39. g3 {[%emt 0:00:51]} (39. Kh2 $16) 39... Qe1+ {[%emt 0:00:45]} 40. Kg2 {[%emt 0:00:08] And now Qc7+ would win.} Qe4+ {[%emt 0:00:14]} 41. Kh2 {[%emt 0:41:00]} Qc6 {[%emt 0:03:04] Repels Qd7+} (41... Qc4 $14) 42. Qf4+ $1 $16 {[%emt 0:00:00]} Kg7 {[%emt 0:02:50]} 43. Qg5+ {[%emt 0:00:00]} ({White should try} 43. g4 $1 $16) 43... Kf7 $14 {[%emt 0:00:16]} 44. Qf5+ {[%emt 0:00:00]} Kg7 {[%emt 0:00:17]} 45. f4 {[%emt 0:00:00]} h6 {[%emt 0:01:09]} 46. Qe5+ {[%emt 0:00:00]} Kf7 {[%emt 0:02:59]} 47. Qd4 {[%emt 0:00:00]} Qc4 {[%emt 0:01:26]} 48. Qd2 {[%emt 0:00:00]} Ke6 {[%emt 0:05:54]} (48... Qc6 $11) 49. Kh3 {[%emt 0:00:00]} (49. g4 $1 $14) 49... Kf6 $11 {[%emt 0:00:54]} 50. Qd6+ {[%emt 0:00:00]} Kf7 {[%emt 0:04:41]} 51. Kh4 {[%emt 0:00:00]} Qe2 {[%emt 0:03:30]} 52. Qe5 {[%emt 0:00:00]} Qc4 {[%emt 0:01:58]} 53. Qf5+ {[%emt 0:00:00]} Kg7 {[%emt 0:00:51]} 54. Qd7+ {[%emt 0:00:00]} Kf6 {[%emt 0:00:15]} 55. Qd6+ {[%emt 0:00:00]} (55. Qxb7 Qxb4 56. Qc6+ Kf7 $14) 55... Kg7 {[%emt 0:03:36] [#]} (55... Kf7 $1 $11) 56. g4 $1 $16 {[%emt 0:00:00] Intending Qe7+ and mate.} Qc1 $2 {[%emt 0:04:29][%mdl 8192] [#]} (56... Qf7 $16 57. Qd4+ Kh7) 57. Qe5+ $2 {[%emt 0:00:00]} (57. Qe7+ $1 {mates} Kg8 58. Kh5 (58. Qxb7 Qxf4 59. Qd5+ Kh7 $11) 58... Qh1+ 59. Kg6 Qc6+ 60. Qf6 Qd7 61. Kxh6 Qh7+ 62. Kg5) 57... Kh7 $2 {[%emt 0:01:41][%mdl 8192]} (57... Kf7 $16) 58. Qe4+ {[%emt 0:00:00]} (58. Qxb5 Qe1+ 59. Kh3 Qe3+ 60. Kh4 Qe1+ 61. Kh3 Qe3+ 62. Kh4 Qe1+ $11) 58... Kh8 {[%emt 0:00:45]} 59. Kh5 {[%emt 0:00:00] Weighted Error Value: White=0.21 (precise) /Black=0.48} ({Stronger than} 59. Qxb7 Qxf4 60. Qc8+ (60. Qxb5 $2 Qh2#) 60... Kh7 61. Qd7+ Kh8 62. Qc8+ (62. Qxb5 $2 Qh2#) (62. Qe8+ Kh7 $11) 62... Kh7 63. Qd7+ Kh8 64. Qe8+ (64. Qxb5 $2 Qh2#) 64... Kh7 65. Qe7+ (65. Qxb5 $2 Qh2#) (65. Qd7+ Kh8 $11) 65... Kg6 66. Qe8+ Kh7 67. Qe7+ (67. Qxb5 $2 Qh2#) (67. Qd7+ Kh8 $11) 67... Kg6 68. Qe8+ Kh7 $11) 1-0

[Event "4NCL 2022-2023"]
[Site "Daventry"]
[Date "2023.01.15"]
[Round "4.31"]
[White "Chan, Nevil"]
[Black "Palliser, Richard J D"]
[Result "0-1"]
[ECO "D00"]
[WhiteElo "2001"]
[BlackElo "2395"]
[Annotator "TA"]
[PlyCount "60"]
[EventDate "2022.10.20"]
[EventType "team-tourn"]
[EventCountry "ENG"]
[SourceTitle "playchess.com"]
[Source "ChessBase"]
[SourceQuality "1"]
[TimeControl "40/6000+30:2400+30"]

{[%evp 13,60,0,0,-27,-25,-27,-5,-24,-9,-10,37,-37,-52,-58,-46,-66,-67,-75,-79,-73,-75,-77,-71,-80,-61,-81,-98,-114,-113,-235,-141,-129,-120,-124,-118,-190,-188,-179,-175,-294,-279,-284,-261,-291,-301,-354,-345,-372,-365]} 1. d4 {[%emt 0:00:04]} Nf6 {[%emt 0:05:02]} 2. Nc3 {[%emt 0:19:45]} d5 {[%emt 0:00:07]} 3. Bg5 {[%emt 0:00:15]} g6 {[%emt 0:00:51]} 4. e3 {[%emt 0:08:36]} Bg7 {[%emt 0:01:55]} 5. Nf3 {[%emt 0:00:50]} O-O {[%emt 0:01:08]} 6. Be2 {[%emt 0:07:53]} b6 {[%emt 0:11:28]} 7. O-O {[%emt 0:02:58]} Bb7 {[%emt 0:00:02]} 8. Ne5 {[%emt 0:11:09] D00: 1 d4 d5: Unusual lines.} Ne8 {[%emt 0:02:12] [#] ...f6 is the strong threat.} 9. Bf4 $146 {[%emt 0:01:02]} ({Predecessor:} 9. Bh4 Nd6 10. f4 f6 11. Nd3 Nd7 12. Bf3 e6 13. Qe2 c5 14. Rad1 Qc7 15. dxc5 bxc5 {0-1 Blanco Acevedo,C (2306)-Martinez Duany,L (2470) Iberoamerican-ch 6th 2015 (8)}) 9... f6 {[%emt 0:00:44]} 10. Nf3 {[%emt 0:52:58] The position is equal.} Nd7 {[%emt 0:00:08]} 11. a4 {[%emt 0:00:00]} c5 {[%emt 0:07:21]} (11... a6 $11) 12. Nb5 {[%emt 0:00:00]} ({Better is} 12. a5 $14) 12... a6 $15 {[%emt 0:03:04]} 13. Na3 {[%emt 0:00:00]} e5 {[%emt 0:03:19]} 14. Bg3 {[%emt 0:00:00]} cxd4 {[%emt 0:08:23]} 15. exd4 {[%emt 0:00:00]} e4 {[%emt 0:00:04]} 16. Ne1 {[%emt 0:00:00]} f5 {[%emt 0:00:34] [#] And now ...f4 would win.} 17. f4 {[%emt 0:00:00]} Nc7 {[%emt 0:00:34]} 18. Bf2 {[%emt 0:00:00]} Ne6 {[%emt 0:03:46]} 19. Be3 {[%emt 0:00:00]} g5 {[%emt 0:05:42] aiming for ...gxf4.} 20. g3 {[%emt 0:00:00]} gxf4 {[%emt 0:00:22]} 21. gxf4 {[%emt 0:00:00]} (21. Rxf4 $17 {was the only defense.} Nxf4 22. Bxf4) 21... Rf6 {[%emt 0:14:03][%cal Bf8f6,Bf6h6,Bh6h3][%mdl 32]} 22. Ng2 {[%emt 0:00:00]} Rh6 $36 {[%emt 0:00:44][%mdl 2048] Keeping White busy.} 23. c3 {[%emt 0:00:00]} Bf8 {[%emt 0:05:42] Black is more active.} 24. Nc2 {[%emt 0:00:00]} (24. Bf2 $17) 24... Bd6 $19 {[%emt 0:00:05]} 25. Kh1 {[%emt 0:00:00]} Kh8 {[%emt 0:00:31]} 26. Qd2 {[%emt 0:00:00]} (26. Bg1 {is a better defense.}) 26... Qf6 {[%emt 0:01:54]} 27. Bg1 {[%emt 0:02:31]} Rh3 {[%emt 0:03:19]} 28. Rf2 {[%emt 0:00:50]} Rf8 {[%emt 0:01:02]} 29. Raf1 {[%emt 0:00:37]} Qh6 {[%emt 0:02:20]} 30. Nce3 {[%emt 0:00:37]} Ng7 {[%emt 0:00:48] Weighted Error Value: White=0.27 (precise) /Black=0.07 (flawless)} 0-1

[Event "4NCL 2022-2023"]
[Site "Daventry"]
[Date "2023.01.15"]
[Round "4.32"]
[White "Urh, Zala"]
[Black "Sivanandan, Bodhana"]
[Result "1-0"]
[ECO "B15"]
[WhiteElo "2282"]
[BlackElo "1718"]
[Annotator "TA"]
[PlyCount "105"]
[EventDate "2022.10.20"]
[EventType "team-tourn"]
[EventCountry "ENG"]
[SourceTitle "playchess.com"]
[Source "ChessBase"]
[SourceQuality "1"]
[TimeControl "40/6000+30:2400+30"]

{[%evp 14,105,27,28,38,24,33,33,46,37,52,22,46,41,64,39,50,54,74,67,67,70,131,121,117,120,115,118,125,116,117,124,158,118,146,149,192,194,194,101,77,90,120,120,163,15,161,132,1443,1339,29958,5489,29988,29989,29989,29990,29990,29991,29991,29987,29994,29995,29995,29996,29996,29990,29990,29986,29986,29987,29987,29988,29988,29989,29989,29990,29990,29991,29991,29991,29992,29993,29994,29995,29995,29996,29996,29997,29997,29997,29997,29997,29997,29998]} 1. e4 {[%emt 0:04:26]} c6 {[%emt 0:00:15]} 2. d4 {[%emt 0:00:32]} d5 {[%emt 0:00:10]} 3. Nc3 {[%emt 0:00:06]} dxe4 {[%emt 0:00:11]} 4. Nxe4 {[%emt 0:00:06]} Nf6 {[%emt 0:00:29]} 5. Nxf6+ {[%emt 0:00:06]} exf6 {[%emt 0:00:28]} 6. c3 {[%emt 0:00:19]} Bd6 {[%emt 0:00:38]} 7. Bd3 {[%emt 0:00:08]} O-O {[%emt 0:01:36]} 8. Qc2 {[%emt 0:00:04] Active counter play!} Re8+ {[%emt 0:00:50] B15: Caro-Kann: 3 Nc3: 3...g6 and 3...dxe4 4 Nxe4 Nf6 5 Nxf6+ exf6.} 9. Ne2 {[%emt 0:00:09]} (9. Be3 $5 {[%cal Rd3h7]}) 9... h5 {[%emt 0:00:39]} 10. O-O {[%emt 0:00:14]} Qc7 {[%emt 0:00:50] White is slightly better.} 11. h3 {[%emt 0:00:37]} Nd7 {[%emt 0:00:29]} 12. Be3 {[%emt 0:02:16]} b6 {[%emt 0:02:08]} 13. c4 {[%emt 0:07:38]} c5 {[%emt 0:04:13] [#]} 14. Be4 $146 {[%emt 0:12:54]} ({Predecessor:} 14. Nc3 cxd4 15. Nd5 Qb8 16. Be4 Bh2+ 17. Kh1 Rxe4 18. Qxe4 dxe3 19. f4 Bg3 20. Qxe3 {½-½ Casalaspro,M (1738)-Mafra,K (2071) Mombaca op 6th 2022 (2)}) 14... Bb7 {[%emt 0:02:42]} 15. d5 {[%emt 0:00:20]} Nf8 {[%emt 0:05:41]} 16. Rae1 {[%emt 0:06:59]} g6 {[%emt 0:05:05]} 17. Nc3 {[%emt 0:05:27]} f5 {[%emt 0:08:49]} (17... Qd7 $14) 18. Nb5 $1 $16 {[%emt 0:05:32]} Qd7 {[%emt 0:07:51]} 19. Nxd6 {[%emt 0:07:27]} Qxd6 {[%emt 0:00:58]} 20. Bf3 {[%emt 0:00:26]} Nd7 {[%emt 0:07:43]} 21. g3 {[%emt 0:07:57]} h4 {[%emt 0:07:55]} 22. Bf4 {[%emt 0:04:38]} Qf6 {[%emt 0:02:20][%cal Ob6b5]} 23. Kh2 {[%emt 0:15:03]} g5 {[%emt 0:04:05]} 24. Bd2 {[%emt 0:04:34] Bc3 is the strong threat.} g4 {[%emt 0:02:36]} 25. Bc3 {[%emt 0:08:22]} (25. hxg4 $6 Rxe1 26. Bxe1 (26. Rxe1 fxg4 27. Bg2 Qxf2 $16) 26... Ne5 $16) 25... Qg5 {[%emt 0:05:58]} 26. Rxe8+ {[%emt 0:09:48]} ({Better is} 26. Bg2 $1 $18) 26... Rxe8 {[%emt 0:00:14] [#]} 27. Rg1 $1 {[%emt 0:00:26][%cal Oc2a4]} Kf8 {[%emt 0:02:01] [#]} (27... gxf3 $2 28. gxh4 $18) (27... Nf6 28. Bxf6) 28. hxg4 {[%emt 0:03:50]} fxg4 {[%emt 0:01:09] [#]} 29. Bd1 {[%emt 0:01:40] A strong pair of Bishops.} (29. Qh7 $1 $18 {[%cal Rh7h8]} Ne5 30. Be4 (30. gxh4 $2 {perishes.} Qf4+ 31. Rg3 Nxf3+ $19)) 29... Ne5 {[%emt 0:07:35]} (29... hxg3+ $11 30. Rxg3 f5) 30. Qh7 $18 {[%emt 0:01:05] Qh8+ would be deadly.} Nf3+ $2 {[%emt 0:11:15][%mdl 8192] This costs Black the game.} (30... Qf6 $16) 31. Bxf3 {[%emt 0:00:06] Qh8+ would kill now.} gxf3 {[%emt 0:00:11]} 32. Qh8+ {[%emt 0:01:04]} ({Less strong is} 32. Qxh4 Qxh4+ 33. gxh4 Re4 $18) (32. d6 $142 f6 33. d7 (33. Qxb7 hxg3+ {[%mdl 64] Remove Defender} 34. Rxg3 Qh6+ 35. Rh3 Qf4+ 36. Rg3 Qh6+ 37. Rh3 Qf4+ 38. Rg3 Qh6+ $11) 33... Rd8 34. gxh4 Be4 35. Qxe4 Qxg1+ 36. Kxg1 Rxd7 37. Bxf6 Rd1+ 38. Kh2) 32... Ke7 {[%emt 0:00:09]} 33. Re1+ {[%emt 0:02:00][%mdl 64] Skewer, Deflection. White mates.} Kd6 {[%emt 0:00:19]} 34. Rxe8 {[%emt 0:00:28]} hxg3+ {[%emt 0:01:57]} 35. fxg3 {[%emt 0:00:06]} Bxd5 {[%emt 0:04:42]} 36. cxd5 {[%emt 0:00:45]} f2 {[%emt 0:02:09]} 37. Qf8+ {[%emt 0:00:19]} Kxd5 {[%emt 0:00:39]} 38. Qxf7+ {[%emt 0:00:08]} Kc6 {[%emt 0:00:39]} 39. Re6+ {[%emt 0:00:46]} Kb5 {[%emt 0:00:17]} 40. Qxf2 {[%emt 0:00:26]} Qh5+ {[%emt 0:00:44]} 41. Kg1 {[%emt 0:40:08]} Qd1+ {[%emt 0:40:57]} 42. Qf1+ {[%emt 0:00:06]} Qxf1+ {[%emt 0:00:13]} 43. Kxf1 {[%emt 0:00:04]} Kc4 {[%emt 0:00:35]} 44. g4 {[%emt 0:00:06]} b5 {[%emt 0:00:15]} 45. g5 {[%emt 0:00:13]} b4 {[%emt 0:00:22]} 46. Be1 {[%emt 0:00:04]} a5 {[%emt 0:00:22]} 47. g6 {[%emt 0:00:09]} a4 {[%emt 0:00:07]} 48. g7 {[%emt 0:00:07]} a3 {[%emt 0:00:22]} 49. bxa3 {[%emt 0:00:08]} bxa3 {[%emt 0:00:07]} 50. g8=Q {[%emt 0:00:10]} Kd3 {[%emt 0:00:09]} 51. Qg3+ {[%emt 0:00:24]} Kc2 {[%emt 0:00:25]} 52. Qc3+ {[%emt 0:00:13]} Kb1 {[%emt 0:00:11]} 53. Rb6+ {[%emt 0:00:08] Artfully played by Urh.   Weighted Error Value: White=0.12 (very precise) /Black=0.42} 1-0

[Event "4NCL 2022-2023"]
[Site "Daventry"]
[Date "2023.01.15"]
[Round "4.33"]
[White "Wall, Gavin"]
[Black "Reimanis, Ritvars"]
[Result "1/2-1/2"]
[ECO "C02"]
[WhiteElo "2286"]
[BlackElo "2374"]
[Annotator "TA"]
[PlyCount "76"]
[EventDate "2022.10.20"]
[EventType "team-tourn"]
[EventCountry "ENG"]
[SourceTitle "playchess.com"]
[Source "ChessBase"]
[SourceQuality "1"]
[TimeControl "40/6000+30:2400+30"]

{[%evp 18,76,0,-11,-6,-12,-18,-16,-9,-35,55,11,33,9,40,43,38,34,15,39,115,111,94,108,141,133,243,182,192,164,186,137,137,137,136,124,137,139,133,96,102,65,66,63,55,61,60,31,60,14,20,0,0,0,0,0,0,0,0,0,8]} 1. e4 {[%emt 1:41:00]} e6 {[%emt 0:02:12]} 2. d4 {[%emt 0:00:00]} d5 {[%emt 0:00:04]} 3. e5 {[%emt 0:00:00]} c5 {[%emt 0:00:04]} 4. c3 {[%emt 0:00:00]} Nc6 {[%emt 0:00:04]} 5. Nf3 {[%emt 0:00:00]} Qb6 {[%emt 0:00:17]} 6. a3 {[%emt 0:00:00]} Nh6 {[%emt 0:00:19]} 7. b4 {[%emt 0:00:00]} cxd4 {[%emt 0:00:36]} 8. cxd4 {[%emt 0:00:00]} Nf5 {[%emt 0:00:17]} 9. Bb2 {[%emt 0:00:00]} Bd7 $1 {[%emt 0:00:13] The main line 9...Bd7 scores better than 9...Be7.} 10. Be2 {[%emt 0:00:00]} h5 {[%emt 0:00:19][%cal Og7g5] C02: French: Advance Variation.} 11. O-O {[%emt 0:00:00]} Be7 {[%emt 0:00:04]} 12. b5 {[%emt 0:00:00]} Na5 {[%emt 0:00:05]} 13. Nc3 {[%emt 0:00:00][%cal Bb1c3,Bc3a4,Ba4c5][%mdl 32] [#]} g5 $146 {[%emt 0:12:56]} (13... Rc8 $15) ({Predecessor:} 13... Rc8 14. Na4 Qd8 15. Nd2 O-O 16. Bd3 a6 17. bxa6 bxa6 18. Nc5 Bb5 19. Bxf5 exf5 {½-½ Savic,M (2511)-Djordjevic,V (2414) Paracin GM 2nd 2018 (7)}) 14. Na4 {[%emt 0:00:00]} (14. Bd3 $5 {[%cal Rd3f5]}) 14... Qd8 {[%emt 0:00:04]} 15. Nd2 {[%emt 0:00:00]} g4 {[%emt 0:02:08]} 16. Nc5 {[%emt 0:00:00]} Rc8 {[%emt 0:01:15][%cal Of5d4]} 17. Rc1 {[%emt 0:00:00]} b6 {[%emt 0:09:17]} 18. Ncb3 {[%emt 0:00:00]} Nc4 {[%emt 0:01:12]} 19. Nxc4 $16 {[%emt 0:00:00]} dxc4 {[%emt 0:00:03]} 20. Rxc4 {[%emt 0:00:00]} O-O {[%emt 0:09:52]} 21. a4 {[%emt 0:00:00]} a6 {[%emt 0:03:41]} (21... Rxc4 $16 22. Bxc4 Nh4) 22. bxa6 {[%emt 0:00:00]} Rxc4 {[%emt 0:00:14]} 23. Bxc4 {[%emt 0:00:00]} Bxa4 {[%emt 0:00:04]} 24. Qd3 {[%emt 0:00:00]} ({Better is} 24. d5 $18 b5 25. Be2) 24... Bc6 {[%emt 0:08:07] [#]} 25. d5 $1 {[%emt 0:00:00][%mdl 512]} Bxd5 {[%emt 0:03:15]} 26. Bxd5 {[%emt 0:00:00]} Qxd5 {[%emt 0:00:02]} 27. Qxd5 {[%emt 0:00:00]} exd5 {[%emt 0:00:01]} 28. Ra1 {[%emt 0:00:00] Threatens to win with Bd4.} Ra8 {[%emt 0:00:53]} 29. Bd4 {[%emt 0:00:00]} Bd8 {[%emt 0:00:19][%cal Of7f6]} 30. f3 {[%emt 0:00:00]} (30. a7 Ne7 $11) 30... Kf8 {[%emt 0:07:02]} 31. fxg4 {[%emt 0:00:00]} ({But not} 31. a7 gxf3 32. gxf3 Ne7 $11) 31... hxg4 {[%emt 0:00:02]} 32. Kf2 {[%emt 0:00:00]} (32. Bc3 $5 {[%cal Rb3d4]}) 32... Ke8 {[%emt 0:17:17]} 33. Ra2 {[%emt 0:02:11]} (33. Bc3 $14) 33... Kd7 $11 {[%emt 0:00:45] The position is equal.} 34. Be3 {[%emt 0:00:12]} Bc7 {[%emt 0:17:12]} 35. Nd4 {[%emt 0:03:21]} Nxe3 {[%emt 0:03:40]} 36. Kxe3 {[%emt 0:00:01]} Bxe5 {[%emt 0:00:09]} 37. h4 {[%emt 0:00:08] Hoping for h5.} gxh3 {[%emt 0:00:21]} 38. gxh3 {[%emt 0:00:01]} Bf6 {[%emt 0:01:51] Black defended with fortune.   Weighted Error Value: White=0.16 (very precise) /Black=0.16 (very precise)} 1/2-1/2

[Event "4NCL 2022-2023"]
[Site "Daventry"]
[Date "2023.01.15"]
[Round "4.34"]
[White "Kilpatrick, Callum"]
[Black "Bourached, Anthony"]
[Result "1-0"]
[ECO "B10"]
[WhiteElo "2413"]
[BlackElo "2049"]
[Annotator "TA"]
[PlyCount "81"]
[EventDate "2022.10.20"]
[EventType "team-tourn"]
[EventCountry "ENG"]
[SourceTitle "playchess.com"]
[Source "ChessBase"]
[SourceQuality "1"]
[TimeControl "40/6000+30:2400+30"]

{[%evp 9,81,-10,17,5,20,9,20,25,47,13,80,22,98,89,89,88,86,69,69,70,93,91,112,118,114,116,184,156,156,164,156,147,147,147,147,153,156,160,160,160,194,188,190,145,165,157,204,193,228,161,200,210,208,205,205,205,256,256,392,256,254,223,223,203,248,248,268,264,29964,5206,5206,1658,6444,6434]} 1. e4 {[%emt 0:02:47]} c6 {[%emt 0:02:27]} 2. Nf3 {[%emt 0:00:54]} d5 {[%emt 0:00:13]} 3. d3 {[%emt 0:00:05]} dxe4 {[%emt 0:16:00]} 4. dxe4 {[%emt 0:00:04]} Qxd1+ {[%emt 0:00:23]} 5. Kxd1 {[%emt 0:00:03]} Bg4 {[%emt 0:01:17]} 6. Nbd2 {[%emt 0:14:37] B10: Caro-Kann: 2 d3 and 2 c4.} Nd7 {[%emt 0:02:57]} 7. c3 {[%emt 0:10:16] [#]} Ngf6 $146 {[%emt 0:06:20]} (7... e6 $5) ({Predecessor:} 7... Ne5 8. Kc2 Nxf3 9. gxf3 Be6 10. Nb3 b6 11. a4 O-O-O 12. Ba6+ Kb8 13. Bf4+ Ka8 {1-0 Glavina,P (2394)-Korchmar,V (2450) Titled Tuesday intern op 28th Jun Late blitz 2022 (8)}) 8. Kc2 {[%emt 0:03:49] The position is equal.} e5 {[%emt 0:05:59]} 9. Ne1 {[%emt 0:02:12]} (9. h3 $5 {[%cal Rh3g4]} Bh5 10. Nh4 $11) 9... Bc5 {[%emt 0:10:57] [#]} (9... Be6 $11) 10. Nd3 {[%emt 0:03:32]} (10. f3 $1 $16 {[%cal Rf3g4]}) 10... O-O-O {[%emt 0:11:42]} (10... Bd6 $11 {keeps the balance.}) 11. f3 {[%emt 0:23:04]} (11. Nxc5 {seems wilder.} Nxc5 12. f3 Be6 13. a4) 11... Be6 {[%emt 0:00:15] [#]} 12. Nxc5 $1 {[%emt 0:00:11]} Nxc5 {[%emt 0:00:10]} 13. Nc4 {[%emt 0:00:12]} Nfd7 {[%emt 0:04:56]} 14. Be3 {[%emt 0:01:35][%cal Bc1e3,Be3a7,Ba7b6][%mdl 32]} f6 {[%emt 0:00:37]} 15. a4 {[%emt 0:07:42] b4 is the strong threat.} Kb8 {[%emt 0:07:53]} 16. b4 {[%emt 0:01:24]} Na6 {[%emt 0:00:17]} 17. Na5 {[%emt 0:02:39] Hoping for Bxa6.} Kc7 {[%emt 0:02:21]} (17... Nc7 $16) 18. Bxa6 {[%emt 0:03:59]} ({Don't play} 18. Bxa7 Ra8 $16) 18... bxa6 {[%emt 0:00:07]} 19. Bxa7 {[%emt 0:00:10] White is much more active.} Nb6 {[%emt 0:03:50]} 20. Rhd1 {[%emt 0:05:11]} Nc4 {[%emt 0:01:22]} 21. Nxc4 {[%emt 0:00:16]} Bxc4 {[%emt 0:00:06]} 22. a5 {[%emt 0:00:33]} Rxd1 {[%emt 0:05:18]} 23. Rxd1 $16 {[%emt 0:00:08][%mdl 4096] Endgame KRB-KRB} Be6 {[%emt 0:00:19]} 24. Bb6+ {[%emt 0:00:16]} Kc8 {[%emt 0:00:13]} 25. Rd6 {[%emt 0:00:14][%csl LRc6,LRe6]} Bd7 {[%emt 0:00:12]} 26. Kd3 {[%emt 0:00:57]} Re8 {[%emt 0:00:29]} 27. Kc4 {[%emt 0:01:01]} Re6 {[%emt 0:00:24]} (27... h5 $16 {was worth a try.} 28. Rd1 h4) 28. Kc5 $18 {[%emt 0:01:49]} Re7 {[%emt 0:03:22]} 29. Rd2 {[%emt 0:03:00]} Kb7 {[%emt 0:03:44]} 30. Bd8 {[%emt 0:04:53]} Rf7 {[%emt 0:00:21]} 31. Kd6 {[%emt 0:01:12]} Bc8 {[%emt 0:08:42] Strongly threatening ...Rd7+.} 32. Be7 {[%emt 0:00:28]} h5 {[%emt 0:06:13]} 33. c4 {[%emt 0:00:46][%cal Ob4b5]} g6 {[%emt 0:01:54]} (33... f5 {was called for.} 34. h3 g6) 34. Rb2 {[%emt 0:01:16]} f5 {[%emt 0:00:48]} 35. Re2 {[%emt 0:06:29] Threatens to win with f4.} fxe4 {[%emt 0:03:13]} 36. Rxe4 {[%emt 0:00:18]} Rf4 {[%emt 0:00:06]} 37. Kxe5 {[%emt 0:02:09]} Rxe4+ {[%emt 0:00:02]} 38. fxe4 {[%emt 0:00:20]} ({But not} 38. Kxe4 $6 Bf5+ 39. Kd4 Bc2 $18) 38... Bd7 $2 {[%emt 0:01:47]} (38... Kc7 $18 39. h3 c5 40. Bxc5 (40. bxc5 Bb7 $18) 40... Bb7) 39. Kd6 {[%emt 0:00:53]} Kc8 {[%emt 0:01:43]} 40. Bg5 {[%emt 0:00:15]} Bg4 {[%emt 0:00:21]} 41. Kxc6 {[%emt 0:40:31] Black did not feel at home in the position after the opening.   Weighted Error Value: White=0.14 (very precise) /Black=0.49} 1-0